[Event "FIDE World Rapid Chess Championship 2021"]
[White "Riazantsev, Alexander"]
[Black "Pichot, Alan"]
[WhiteFideId "4125029"]
[BlackFideId "110973"]
[WhiteElo "2632"]
[BlackElo "2523"]
[Result "1/2-1/2"]
[Round "03"]
[TimeControl "900+10"]
[Date "2021.12.26"]
[WhiteClock "0:00:13"]
[BlackClock "0:01:18"]

1. d4 {[%clk 0:15:00]}  d5 {[%clk 0:15:00]} 2. c4 {[%clk 0:15:24]}  dxc4 {[%clk 0:15:18]} 3. Nf3 {[%clk 0:15:24]}  Nf6 {[%clk 0:15:18]} 4. e3 {[%clk 0:15:24]}  e6 {[%clk 0:15:18]} 5. Bxc4 {[%clk 0:15:24]}  a6 {[%clk 0:15:18]} 6. O-O {[%clk 0:15:24]}  c5 {[%clk 0:15:18]} 7. Be2 {[%clk 0:15:24]}  b5 {[%clk 0:15:56]} 8. a4 {[%clk 0:16:05]}  b4 {[%clk 0:15:56]} 9. b3 {[%clk 0:16:05]}  Bb7 {[%clk 0:15:56]} 10. Bb2 {[%clk 0:16:05]}  Nbd7 {[%clk 0:14:55]} 11. Nbd2 {[%clk 0:15:49]}  Be7 {[%clk 0:14:55]} 12. Nc4 {[%clk 0:15:49]}  O-O {[%clk 0:14:55]} 13. Nfe5 {[%clk 0:15:49]}  cxd4 {[%clk 0:14:21]} 14. Nxd7 {[%clk 0:16:08]}  Nxd7 {[%clk 0:14:21]} 15. Bxd4 {[%clk 0:15:20]}  Nc5 {[%clk 0:14:21]} 16. Bxc5 {[%clk 0:15:20]}  Bxc5 {[%clk 0:13:23]} 17. Bf3 {[%clk 0:15:02]}  Qxd1 {[%clk 0:13:14]} 18. Rfxd1 {[%clk 0:15:10]}  Bxf3 {[%clk 0:13:14]} 19. gxf3 {[%clk 0:15:10]}  Rfd8 {[%clk 0:13:14]} 20. Na5 {[%clk 0:15:25]}  g6 {[%clk 0:11:42]} 21. Kf1 {[%clk 0:10:25]}  Kg7 {[%clk 0:08:42]} 22. Ke2 {[%clk 0:08:25]}  Kf6 {[%clk 0:08:27]} 23. Rac1 {[%clk 0:07:44]}  Rxd1 {[%clk 0:07:05]} 24. Rxd1 {[%clk 0:07:44]}  Ke7 {[%clk 0:07:05]} 25. Nc6+ {[%clk 0:05:32]}  Ke8 {[%clk 0:06:36]} 26. Ne5 {[%clk 0:05:32]}  f6 {[%clk 0:06:36]} 27. Nd3 {[%clk 0:04:37]}  Bd6 {[%clk 0:06:15]} 28. Rc1 {[%clk 0:03:00]}  Kd7 {[%clk 0:06:15]} 29. f4 {[%clk 0:03:00]}  Rc8 {[%clk 0:06:15]} 30. Rxc8 {[%clk 0:03:13]}  Kxc8 {[%clk 0:06:15]} 31. Ne1 {[%clk 0:03:13]}  Kc7 {[%clk 0:06:15]} 32. Kd3 {[%clk 0:03:13]}  Kc6 {[%clk 0:06:15]} 33. Kc4 {[%clk 0:03:13]}  a5 {[%clk 0:06:15]} 34. Nf3 {[%clk 0:03:40]}  Bc5 {[%clk 0:04:41]} 35. h3 {[%clk 0:03:37]}  Bb6 {[%clk 0:04:46]} 36. Nd2 {[%clk 0:03:37]}  Bc5 {[%clk 0:04:46]} 37. Ne4 {[%clk 0:03:37]}  Be7 {[%clk 0:04:46]} 38. Ng3 {[%clk 0:03:37]}  Bc5 {[%clk 0:04:46]} 39. Ne2 {[%clk 0:03:37]}  Bb6 {[%clk 0:04:42]} 40. Ng1 {[%clk 0:03:03]}  Ba7 {[%clk 0:04:25]} 41. Nf3 {[%clk 0:03:03]}  Bb6 {[%clk 0:04:25]} 42. Nh2 {[%clk 0:03:03]}  Bc5 {[%clk 0:04:25]} 43. Ng4 {[%clk 0:03:03]}  Be7 {[%clk 0:04:25]} 44. Nh2 {[%clk 0:03:03]}  Bc5 {[%clk 0:04:25]} 45. Nf3 {[%clk 0:03:03]}  Bb6 {[%clk 0:04:25]} 46. Ne1 {[%clk 0:03:03]}  Ba7 {[%clk 0:04:43]} 47. Nd3 {[%clk 0:01:43]}  Bb6 {[%clk 0:04:43]} 48. e4 {[%clk 0:01:25]}  Ba7 {[%clk 0:04:28]} 49. f3 {[%clk 0:01:25]}  Be3 {[%clk 0:04:28]} 50. f5 {[%clk 0:01:25]}  gxf5 {[%clk 0:03:34]} 51. exf5 {[%clk 0:01:31]}  exf5 {[%clk 0:03:34]} 52. Ne1 {[%clk 0:01:31]}  Bf4 {[%clk 0:03:31]} 53. Nc2 {[%clk 0:00:32]}  Be5 {[%clk 0:03:31]} 54. Ne3 {[%clk 0:00:32]}  f4 {[%clk 0:03:31]} 55. Nf5 {[%clk 0:01:12]}  Bb2 {[%clk 0:02:09]} 56. Nh4 {[%clk 0:00:21]}  Be5 {[%clk 0:02:09]} 57. Ng2 {[%clk 0:00:21]}  Bb8 {[%clk 0:02:09]} 58. Kd4 {[%clk 0:00:21]}  Bc7 {[%clk 0:00:52]} 59. Ne1 {[%clk 0:00:46]}  Bb8 {[%clk 0:00:52]} 60. Nd3 {[%clk 0:00:46]}  Bc7 {[%clk 0:00:52]} 61. Ke4 {[%clk 0:00:46]}  Bd6 {[%clk 0:00:52]} 62. Nb2 {[%clk 0:00:46]}  Be5 {[%clk 0:00:52]} 63. Nd3 {[%clk 0:00:42]}  Bd6 {[%clk 0:01:04]} 64. Nc1 {[%clk 0:00:42]}  Bb8 {[%clk 0:01:04]} 65. Ne2 {[%clk 0:00:42]}  Be5 {[%clk 0:01:04]} 66. h4 {[%clk 0:00:42]}  Kd6 {[%clk 0:01:04]} 67. Kf5 {[%clk 0:00:42]}  Kd5 {[%clk 0:00:56]} 68. h5 {[%clk 0:00:44]}  Kd6 {[%clk 0:00:56]} 69. Nc1 {[%clk 0:00:44]}  Kd5 {[%clk 0:01:05]} 70. Ne2 {[%clk 0:00:44]}  Kd6 {[%clk 0:01:05]} 71. Nc1 {[%clk 0:00:13]}  Kd5 {[%clk 0:01:18]} 72. Ne2 {[%clk 0:00:13]}  Kd6 {[%clk 0:01:18]} 73. h6 {[%clk 0:00:13]}  Kd5 {[%clk 0:01:18]} 1/2-1/2


[Site "http://www.Chess.com"]

[Event "FIDE World Rapid Chess Championship 2021"]
[White "Predke, Alexandr"]
[Black "Yuffa, Daniil"]
[WhiteFideId "24107581"]
[BlackFideId "24131423"]
[WhiteElo "2630"]
[BlackElo "2514"]
[Result "1-0"]
[Round "03"]
[TimeControl "900+10"]
[Date "2021.12.26"]
[WhiteClock "0:02:19"]
[BlackClock "0:00:02"]

1. d4 {[%clk 0:15:13]}  Nf6 {[%clk 0:15:00]} 2. c4 {[%clk 0:15:11]}  e6 {[%clk 0:15:26]} 3. Nc3 {[%clk 0:15:11]}  Bb4 {[%clk 0:15:26]} 4. e3 {[%clk 0:15:11]}  O-O {[%clk 0:15:26]} 5. Bd3 {[%clk 0:15:11]}  c5 {[%clk 0:15:26]} 6. Ne2 {[%clk 0:15:11]}  d5 {[%clk 0:15:26]} 7. cxd5 {[%clk 0:15:11]}  cxd4 {[%clk 0:15:26]} 8. exd4 {[%clk 0:15:11]}  Nxd5 {[%clk 0:15:26]} 9. a3 {[%clk 0:15:11]}  Be7 {[%clk 0:15:26]} 10. Nxd5 {[%clk 0:15:11]}  exd5 {[%clk 0:15:10]} 11. O-O {[%clk 0:15:15]}  Nc6 {[%clk 0:14:26]} 12. Nf4 {[%clk 0:15:15]}  Bf6 {[%clk 0:14:26]} 13. Be3 {[%clk 0:15:15]}  g6 {[%clk 0:13:48]} 14. Bc2 {[%clk 0:14:46]}  Qd6 {[%clk 0:13:48]} 15. Qd2 {[%clk 0:14:54]}  Bg7 {[%clk 0:12:54]} 16. Rac1 {[%clk 0:14:54]}  Be6 {[%clk 0:12:23]} 17. Bb1 {[%clk 0:14:00]}  Rac8 {[%clk 0:11:28]} 18. Rc3 {[%clk 0:14:00]}  Ne7 {[%clk 0:12:20]} 19. Nxe6 {[%clk 0:11:43]}  fxe6 {[%clk 0:11:26]} 20. Rfc1 {[%clk 0:11:43]}  Rxc3 {[%clk 0:11:06]} 21. Rxc3 {[%clk 0:10:37]}  Nc6 {[%clk 0:11:06]} 22. Rd3 {[%clk 0:10:46]}  Rc8 {[%clk 0:10:20]} 23. g3 {[%clk 0:10:46]}  Ne7 {[%clk 0:10:20]} 24. Rb3 {[%clk 0:09:46]}  b6 {[%clk 0:09:46]} 25. Kg2 {[%clk 0:09:12]}  Qd7 {[%clk 0:09:29]} 26. Bd3 {[%clk 0:06:46]}  Nf5 {[%clk 0:09:12]} 27. Bxf5 {[%clk 0:04:23]}  exf5 {[%clk 0:09:12]} 28. Bf4 {[%clk 0:04:23]}  Rc4 {[%clk 0:09:12]} 29. Rd3 {[%clk 0:04:23]}  Qc6 {[%clk 0:08:41]} 30. b3 {[%clk 0:04:21]}  Rc2 {[%clk 0:08:41]} 31. Qe1 {[%clk 0:04:21]}  Bf8 {[%clk 0:05:00]} 32. Qe5 {[%clk 0:04:17]}  Qd7 {[%clk 0:03:35]} 33. a4 {[%clk 0:04:29]}  Bg7 {[%clk 0:03:35]} 34. Qe1 {[%clk 0:04:29]}  Kf7 {[%clk 0:03:35]} 35. Be5 {[%clk 0:04:37]}  Bxe5 {[%clk 0:02:51]} 36. Qxe5 {[%clk 0:04:37]}  Qe6 {[%clk 0:02:33]} 37. Re3 {[%clk 0:03:32]}  Qxe5 {[%clk 0:02:33]} 38. Rxe5 {[%clk 0:03:32]}  Rd2 {[%clk 0:02:21]} 39. Rxd5 {[%clk 0:04:02]}  Ke6 {[%clk 0:02:21]} 40. Rd8 {[%clk 0:04:02]}  h6 {[%clk 0:02:21]} 41. h4 {[%clk 0:04:02]}  Rb2 {[%clk 0:02:21]} 42. d5+ {[%clk 0:04:00]}  Ke5 {[%clk 0:00:25]} 43. d6 {[%clk 0:03:42]}  Rxb3 {[%clk 0:00:25]} 44. d7 {[%clk 0:03:42]}  Kd6 {[%clk 0:00:54]} 45. Rg8 {[%clk 0:02:34]}  Kxd7 {[%clk 0:00:54]} 46. Rxg6 {[%clk 0:02:34]}  a5 {[%clk 0:00:54]} 47. Rxh6 {[%clk 0:02:34]}  Rb4 {[%clk 0:00:02]} 48. h5 {[%clk 0:02:37]}  Kc7 {[%clk 0:00:02]} 49. Rg6 {[%clk 0:02:37]}  b5 {[%clk 0:00:02]} 50. h6 {[%clk 0:02:37]}  bxa4 {[%clk 0:00:02]} 51. h7 {[%clk 0:02:37]}  Rb8 {[%clk 0:00:02]} 52. Rg8 {[%clk 0:02:19]} 1-0


[Site "http://www.Chess.com"]

[Event "FIDE World Rapid Chess Championship 2021"]
[White "Petrosian, Tigran L."]
[Black "Czarnota, Pawel"]
[WhiteFideId "13301616"]
[BlackFideId "1121219"]
[WhiteElo "2621"]
[BlackElo "2511"]
[Result "1-0"]
[Round "03"]
[TimeControl "900+10"]
[Date "2021.12.26"]
[WhiteClock "0:00:48"]
[BlackClock "0:01:48"]

1. Nf3 {[%clk 0:15:00]}  Nf6 {[%clk 0:15:00]} 2. g3 {[%clk 0:15:00]}  d5 {[%clk 0:14:53]} 3. Bg2 {[%clk 0:15:38]}  c6 {[%clk 0:14:53]} 4. c4 {[%clk 0:15:38]}  e6 {[%clk 0:14:53]} 5. O-O {[%clk 0:15:38]}  Be7 {[%clk 0:14:53]} 6. b3 {[%clk 0:15:38]}  O-O {[%clk 0:14:53]} 7. Bb2 {[%clk 0:15:38]}  Nbd7 {[%clk 0:14:53]} 8. Qc2 {[%clk 0:15:38]}  b6 {[%clk 0:14:53]} 9. d3 {[%clk 0:15:32]}  Bb7 {[%clk 0:14:44]} 10. e4 {[%clk 0:15:32]}  c5 {[%clk 0:14:44]} 11. Re1 {[%clk 0:14:18]}  d4 {[%clk 0:14:11]} 12. e5 {[%clk 0:13:10]}  Ne8 {[%clk 0:12:24]} 13. Bc1 {[%clk 0:13:15]}  a5 {[%clk 0:12:04]} 14. a4 {[%clk 0:13:00]}  Nc7 {[%clk 0:10:25]} 15. Qe2 {[%clk 0:13:00]}  Na6 {[%clk 0:10:30]} 16. h4 {[%clk 0:11:40]}  Nb4 {[%clk 0:10:30]} 17. Bf4 {[%clk 0:11:40]}  Qc7 {[%clk 0:09:29]} 18. Na3 {[%clk 0:11:29]}  Bc6 {[%clk 0:09:29]} 19. Ng5 {[%clk 0:11:33]}  Bxg2 {[%clk 0:08:53]} 20. Kxg2 {[%clk 0:11:33]}  Qc6+ {[%clk 0:08:53]} 21. Kh2 {[%clk 0:06:01]}  Rfe8 {[%clk 0:09:02]} 22. Nb5 {[%clk 0:04:03]}  Nf8 {[%clk 0:09:02]} 23. Ne4 {[%clk 0:03:49]}  Rad8 {[%clk 0:04:41]} 24. Bg5 {[%clk 0:02:59]}  Rd7 {[%clk 0:04:32]} 25. Bxe7 {[%clk 0:02:59]}  Rexe7 {[%clk 0:04:32]} 26. Rad1 {[%clk 0:02:19]}  Kh8 {[%clk 0:03:33]} 27. Qh5 {[%clk 0:02:14]}  Na6 {[%clk 0:03:17]} 28. Rd2 {[%clk 0:02:14]}  Nc7 {[%clk 0:02:58]} 29. Nxc7 {[%clk 0:01:05]}  Qxc7 {[%clk 0:02:58]} 30. Rde2 {[%clk 0:01:05]}  Rd8 {[%clk 0:03:10]} 31. Ng5 {[%clk 0:00:35]}  Kg8 {[%clk 0:03:10]} 32. Re4 {[%clk 0:00:35]}  Qc6 {[%clk 0:03:10]} 33. Rg4 {[%clk 0:00:35]}  Qc7 {[%clk 0:03:10]} 34. Ne4 {[%clk 0:00:50]}  Ng6 {[%clk 0:02:01]} 35. Nf6+ {[%clk 0:00:50]}  gxf6 {[%clk 0:01:48]} 36. exf6 {[%clk 0:00:48]}  Kh8 {[%clk 0:01:48]} 37. Qh6 {[%clk 0:00:48]}  Rg8 {[%clk 0:01:48]} 38. Rg5 {[%clk 0:00:48]} 1-0


[Site "http://www.Chess.com"]

[Event "FIDE World Rapid Chess Championship 2021"]
[White "Wieczorek, Oskar"]
[Black "Amin, Bassem"]
[WhiteFideId "1133950"]
[BlackFideId "10601457"]
[WhiteElo "2367"]
[BlackElo "2614"]
[Result "0-1"]
[Round "03"]
[TimeControl "900+10"]
[Date "2021.12.26"]
[WhiteClock "0:00:12"]
[BlackClock "0:00:48"]

1. e4 {[%clk 0:15:00]}  e5 {[%clk 0:15:18]} 2. Nc3 {[%clk 0:15:27]}  Nf6 {[%clk 0:15:18]} 3. g3 {[%clk 0:15:27]}  Bc5 {[%clk 0:14:48]} 4. Bg2 {[%clk 0:15:35]}  c6 {[%clk 0:14:48]} 5. Nge2 {[%clk 0:15:35]}  O-O {[%clk 0:14:41]} 6. O-O {[%clk 0:14:38]}  Re8 {[%clk 0:13:45]} 7. d3 {[%clk 0:14:38]}  h6 {[%clk 0:13:37]} 8. h3 {[%clk 0:13:30]}  d5 {[%clk 0:13:37]} 9. exd5 {[%clk 0:13:28]}  cxd5 {[%clk 0:13:03]} 10. d4 {[%clk 0:13:28]}  exd4 {[%clk 0:13:03]} 11. Nxd4 {[%clk 0:13:28]}  Bxd4 {[%clk 0:13:14]} 12. Qxd4 {[%clk 0:11:47]}  Nc6 {[%clk 0:13:14]} 13. Qd1 {[%clk 0:11:47]}  d4 {[%clk 0:13:11]} 14. Ne2 {[%clk 0:11:20]}  Bf5 {[%clk 0:13:11]} 15. Nf4 {[%clk 0:11:20]}  Qd7 {[%clk 0:13:05]} 16. g4 {[%clk 0:11:20]}  Be4 {[%clk 0:11:37]} 17. Nd3 {[%clk 0:11:20]}  Bxg2 {[%clk 0:11:37]} 18. Kxg2 {[%clk 0:11:20]}  Rac8 {[%clk 0:11:37]} 19. Qf3 {[%clk 0:09:38]}  Ne5 {[%clk 0:11:42]} 20. Nxe5 {[%clk 0:08:51]}  Rxe5 {[%clk 0:11:42]} 21. Bxh6 {[%clk 0:08:52]}  Rxc2 {[%clk 0:08:16]} 22. Rae1 {[%clk 0:07:49]}  Rxe1 {[%clk 0:08:20]} 23. Rxe1 {[%clk 0:03:10]}  Rxb2 {[%clk 0:08:20]} 24. Bg5 {[%clk 0:03:18]}  Rxa2 {[%clk 0:03:39]} 25. Bxf6 {[%clk 0:01:22]}  gxf6 {[%clk 0:00:26]} 26. Rd1 {[%clk 0:01:22]}  Kg7 {[%clk 0:00:26]} 27. h4 {[%clk 0:01:22]}  Ra6 {[%clk 0:00:26]} 28. h5 {[%clk 0:01:22]}  Rd6 {[%clk 0:00:32]} 29. Qf4 {[%clk 0:00:16]}  d3 {[%clk 0:00:32]} 30. g5 {[%clk 0:00:16]}  fxg5 {[%clk 0:00:32]} 31. Qxg5+ {[%clk 0:00:16]}  Kh7 {[%clk 0:00:32]} 32. Kh2 {[%clk 0:00:12]}  Rd5 {[%clk 0:00:48]} 33. Qh4 {[%clk 0:00:12]}  Qf5 {[%clk 0:00:48]} 34. Kg3 {[%clk 0:00:12]}  d2 {[%clk 0:00:48]} 35. h6 {[%clk 0:00:12]}  Qg5+ {[%clk 0:00:48]} 36. Qxg5 {[%clk 0:00:12]}  Rxg5+ {[%clk 0:00:48]} 0-1


[Site "http://www.Chess.com"]

[Event "FIDE World Rapid Chess Championship 2021"]
[White "Ponkratov, Pavel"]
[Black "Nihal, Sarin"]
[WhiteFideId "4157800"]
[BlackFideId "25092340"]
[WhiteElo "2614"]
[BlackElo "2500"]
[Result "0-1"]
[Round "03"]
[TimeControl "900+10"]
[Date "2021.12.26"]
[WhiteClock "0:08:27"]
[BlackClock "0:04:48"]

1. g3 {[%clk 0:15:00]}  e5 {[%clk 0:15:00]} 2. c4 {[%clk 0:15:17]}  c6 {[%clk 0:15:07]} 3. d4 {[%clk 0:15:17]}  e4 {[%clk 0:15:07]} 4. f3 {[%clk 0:15:17]}  Nf6 {[%clk 0:15:07]} 5. Nc3 {[%clk 0:15:17]}  Bb4 {[%clk 0:15:07]} 6. Bg2 {[%clk 0:15:17]}  d5 {[%clk 0:15:07]} 7. Bg5 {[%clk 0:15:17]}  Nbd7 {[%clk 0:15:07]} 8. cxd5 {[%clk 0:14:21]}  cxd5 {[%clk 0:14:45]} 9. fxe4 {[%clk 0:14:11]}  dxe4 {[%clk 0:13:51]} 10. Qa4 {[%clk 0:14:11]}  Bxc3+ {[%clk 0:13:51]} 11. bxc3 {[%clk 0:14:11]}  O-O {[%clk 0:13:51]} 12. Nh3 {[%clk 0:13:50]}  h6 {[%clk 0:14:12]} 13. Bxf6 {[%clk 0:13:50]}  Nxf6 {[%clk 0:14:12]} 14. O-O {[%clk 0:13:50]}  Nd5 {[%clk 0:13:58]} 15. Nf4 {[%clk 0:12:10]}  Ne3 {[%clk 0:10:53]} 16. Bxe4 {[%clk 0:12:10]}  Qe8 {[%clk 0:11:02]} 17. Qxe8 {[%clk 0:11:55]}  Rxe8 {[%clk 0:11:02]} 18. Bd3 {[%clk 0:11:55]}  Nxf1 {[%clk 0:11:02]} 19. Rxf1 {[%clk 0:11:55]}  Bd7 {[%clk 0:09:50]} 20. Bc4 {[%clk 0:11:47]}  Rac8 {[%clk 0:09:50]} 21. Bb3 {[%clk 0:11:47]}  b5 {[%clk 0:09:50]} 22. Rf3 {[%clk 0:12:01]}  a5 {[%clk 0:09:16]} 23. a3 {[%clk 0:10:01]}  Bg4 {[%clk 0:08:38]} 24. Rf2 {[%clk 0:10:01]}  Bf5 {[%clk 0:07:09]} 25. Rf3 {[%clk 0:09:42]}  Be4 {[%clk 0:04:43]} 26. Re3 {[%clk 0:09:42]}  Bb7 {[%clk 0:04:45]} 27. Rxe8+ {[%clk 0:09:04]}  Rxe8 {[%clk 0:04:45]} 28. Kf2 {[%clk 0:09:04]}  Rc8 {[%clk 0:04:45]} 29. Bd5 {[%clk 0:09:04]}  Ba6 {[%clk 0:04:45]} 30. Nd3 {[%clk 0:08:19]}  Rxc3 {[%clk 0:04:39]} 31. Nc5 {[%clk 0:08:19]}  Bc8 {[%clk 0:04:39]} 32. Bc6 {[%clk 0:08:19]}  b4 {[%clk 0:04:39]} 33. axb4 {[%clk 0:08:19]}  axb4 {[%clk 0:04:39]} 34. Bd5 {[%clk 0:08:19]}  Be6 {[%clk 0:04:48]} 35. Nxe6 {[%clk 0:08:27]}  fxe6 {[%clk 0:04:48]} 36. Bxe6+ {[%clk 0:08:27]}  Kf8 {[%clk 0:04:48]} 37. Ke1 {[%clk 0:08:27]}  b3 {[%clk 0:04:48]} 38. Kd2 {[%clk 0:08:27]}  b2 {[%clk 0:04:48]} 0-1


[Site "http://www.Chess.com"]

[Event "FIDE World Rapid Chess Championship 2021"]
[White "Efimenko, Zahar"]
[Black "Narayanan.S.L, "]
[WhiteFideId "14107201"]
[BlackFideId "5058422"]
[WhiteElo "2609"]
[BlackElo "2482"]
[Result "1/2-1/2"]
[Round "03"]
[TimeControl "900+10"]
[Date "2021.12.26"]
[WhiteClock "0:00:42"]
[BlackClock "0:01:20"]

1. Nf3 {[%clk 0:15:00]}  Nf6 {[%clk 0:15:00]} 2. g3 {[%clk 0:15:00]}  c5 {[%clk 0:15:00]} 3. Bg2 {[%clk 0:15:22]}  Nc6 {[%clk 0:15:42]} 4. O-O {[%clk 0:15:22]}  e5 {[%clk 0:15:42]} 5. e4 {[%clk 0:15:22]}  d6 {[%clk 0:15:42]} 6. Nc3 {[%clk 0:15:22]}  g6 {[%clk 0:15:42]} 7. d3 {[%clk 0:15:22]}  Bg7 {[%clk 0:15:42]} 8. Nd2 {[%clk 0:15:22]}  O-O {[%clk 0:15:42]} 9. Nc4 {[%clk 0:15:22]}  Bg4 {[%clk 0:15:42]} 10. Qd2 {[%clk 0:15:27]}  Be6 {[%clk 0:15:21]} 11. Ne3 {[%clk 0:14:11]}  Nd4 {[%clk 0:15:20]} 12. f4 {[%clk 0:14:09]}  exf4 {[%clk 0:15:20]} 13. gxf4 {[%clk 0:14:09]}  Re8 {[%clk 0:13:22]} 14. Qf2 {[%clk 0:14:03]}  Kh8 {[%clk 0:12:42]} 15. Kh1 {[%clk 0:13:06]}  Rc8 {[%clk 0:11:36]} 16. f5 {[%clk 0:12:32]}  gxf5 {[%clk 0:09:54]} 17. Nxf5 {[%clk 0:10:36]}  Bxf5 {[%clk 0:09:43]} 18. exf5 {[%clk 0:10:42]}  h6 {[%clk 0:08:39]} 19. Qh4 {[%clk 0:10:50]}  Nh7 {[%clk 0:05:00]} 20. Qf2 {[%clk 0:05:14]}  b5 {[%clk 0:04:34]} 21. Bf4 {[%clk 0:05:14]}  Nf6 {[%clk 0:03:56]} 22. Rae1 {[%clk 0:05:14]}  Rxe1 {[%clk 0:03:56]} 23. Rxe1 {[%clk 0:04:04]}  Qd7 {[%clk 0:03:40]} 24. Ne4 {[%clk 0:03:39]}  Nxe4 {[%clk 0:03:40]} 25. dxe4 {[%clk 0:03:39]}  Qe7 {[%clk 0:03:40]} 26. Qd2 {[%clk 0:03:27]}  Re8 {[%clk 0:02:21]} 27. Rg1 {[%clk 0:03:27]}  Kh7 {[%clk 0:02:21]} 28. c3 {[%clk 0:03:27]}  Nc6 {[%clk 0:02:21]} 29. Qxd6 {[%clk 0:03:21]}  Qxd6 {[%clk 0:01:23]} 30. Bxd6 {[%clk 0:03:21]}  c4 {[%clk 0:01:23]} 31. Rd1 {[%clk 0:02:26]}  Ne5 {[%clk 0:01:38]} 32. Bxe5 {[%clk 0:02:26]}  Bxe5 {[%clk 0:01:38]} 33. Rd7 {[%clk 0:02:26]}  Kg7 {[%clk 0:01:38]} 34. Bf3 {[%clk 0:02:26]}  a6 {[%clk 0:00:45]} 35. Bh5 {[%clk 0:01:58]}  Rf8 {[%clk 0:00:45]} 36. a3 {[%clk 0:01:58]}  Kf6 {[%clk 0:01:01]} 37. Kg2 {[%clk 0:01:35]}  Bf4 {[%clk 0:01:01]} 38. h4 {[%clk 0:01:35]}  Bc1 {[%clk 0:01:01]} 39. Kf3 {[%clk 0:01:35]}  Bxb2 {[%clk 0:01:01]} 40. Rd6+ {[%clk 0:01:35]}  Ke5 {[%clk 0:01:01]} 41. Rd5+ {[%clk 0:00:42]}  Kf6 {[%clk 0:01:20]} 42. Rd6+ {[%clk 0:00:42]}  Ke5 {[%clk 0:01:20]} 43. Rd5+ {[%clk 0:00:42]}  Kf6 {[%clk 0:01:20]} 44. Rd6+ {[%clk 0:00:42]}  Ke5 {[%clk 0:01:20]} 45. Rd5+ {[%clk 0:00:42]} 1/2-1/2


[Site "http://www.Chess.com"]

[Event "FIDE World Rapid Chess Championship 2021"]
[White "Bellahcene, Bilel"]
[Black "Chigaev, Maksim"]
[WhiteFideId "696358"]
[BlackFideId "4108116"]
[WhiteElo "2397"]
[BlackElo "2605"]
[Result "1-0"]
[Round "03"]
[TimeControl "900+10"]
[Date "2021.12.26"]
[WhiteClock "0:01:20"]
[BlackClock "0:00:17"]

1. e4 {[%clk 0:15:35]}  c5 {[%clk 0:15:37]} 2. Nf3 {[%clk 0:15:35]}  d6 {[%clk 0:15:37]} 3. d4 {[%clk 0:15:35]}  cxd4 {[%clk 0:15:37]} 4. Nxd4 {[%clk 0:15:35]}  Nf6 {[%clk 0:15:37]} 5. Nc3 {[%clk 0:15:35]}  a6 {[%clk 0:15:37]} 6. b3 {[%clk 0:15:43]}  e5 {[%clk 0:15:54]} 7. Nde2 {[%clk 0:15:43]}  b5 {[%clk 0:15:54]} 8. g3 {[%clk 0:15:51]}  Bb7 {[%clk 0:14:25]} 9. Bg2 {[%clk 0:15:51]}  Nbd7 {[%clk 0:14:25]} 10. O-O {[%clk 0:14:54]}  Rc8 {[%clk 0:14:34]} 11. h3 {[%clk 0:14:54]}  Be7 {[%clk 0:14:34]} 12. Nd5 {[%clk 0:11:51]}  Nxd5 {[%clk 0:14:13]} 13. exd5 {[%clk 0:11:51]}  O-O {[%clk 0:13:37]} 14. a4 {[%clk 0:05:55]}  b4 {[%clk 0:13:33]} 15. a5 {[%clk 0:05:40]}  Nf6 {[%clk 0:10:17]} 16. Be3 {[%clk 0:05:40]}  Qd7 {[%clk 0:10:17]} 17. Qd2 {[%clk 0:05:37]}  Qb5 {[%clk 0:09:15]} 18. c4 {[%clk 0:05:03]}  bxc3 {[%clk 0:09:15]} 19. Nxc3 {[%clk 0:05:03]}  Qxb3 {[%clk 0:08:06]} 20. Rfb1 {[%clk 0:05:11]}  Rxc3 {[%clk 0:05:06]} 21. Rxb3 {[%clk 0:05:20]}  Rxb3 {[%clk 0:05:06]} 22. Qd1 {[%clk 0:05:17]}  Rb5 {[%clk 0:04:15]} 23. Rb1 {[%clk 0:02:42]}  Rxd5 {[%clk 0:04:15]} 24. Qe2 {[%clk 0:02:51]}  Bc8 {[%clk 0:02:11]} 25. Bb6 {[%clk 0:02:29]}  e4 {[%clk 0:02:11]} 26. Rc1 {[%clk 0:02:29]}  Rb5 {[%clk 0:02:11]} 27. Bf1 {[%clk 0:02:14]}  d5 {[%clk 0:01:17]} 28. Qc2 {[%clk 0:01:31]}  Bd7 {[%clk 0:01:14]} 29. Qc7 {[%clk 0:01:31]}  Ba3 {[%clk 0:01:14]} 30. Rc3 {[%clk 0:01:31]}  Bb4 {[%clk 0:01:14]} 31. Bxb5 {[%clk 0:01:31]}  Bxb5 {[%clk 0:01:14]} 32. Rb3 {[%clk 0:01:31]}  Bxa5 {[%clk 0:00:47]} 33. Bxa5 {[%clk 0:01:24]}  d4 {[%clk 0:00:47]} 34. Qd6 {[%clk 0:01:20]}  d3 {[%clk 0:00:17]} 35. Bc3 {[%clk 0:01:20]}  e3 {[%clk 0:00:17]} 36. fxe3 {[%clk 0:01:20]}  Ne4 {[%clk 0:00:17]} 37. Qd4 {[%clk 0:01:20]}  Nxc3 {[%clk 0:00:17]} 38. Rxc3 {[%clk 0:01:20]} 1-0


[Site "http://www.Chess.com"]